[Event "Early-Titled-Tuesday-Blitz-May-28-2024"]
[Site "Chess.com"]
[Date "2024.05.28"]
[Round "11"]
[White "DenLaz"]
[Black "Durarbayli"]
[Result "0-1"]
[WhiteElo "3109"]
[BlackElo "2945"]
[TimeControl "180+1"]
[EndTime "10:09:50 PDT"]
[Termination "Durarbayli won by resignation"]

1. d4 {[%clk 0:03:00.9]} 1... d5 {[%clk 0:03:00.7]} 2. c4 {[%clk 0:03:01.4]}
2... c6 {[%clk 0:03:01.4]} 3. Nf3 {[%clk 0:03:01.4]} 3... Nf6 {[%clk 0:03:02.1]}
4. Qc2 {[%clk 0:03:02]} 4... dxc4 {[%clk 0:03:01.8]} 5. Qxc4 {[%clk 0:03:02]}
5... Bf5 {[%clk 0:03:01.7]} 6. g3 {[%clk 0:03:02.3]} 6... e6 {[%clk 0:03:02.2]}
7. Bg2 {[%clk 0:03:02.7]} 7... Be7 {[%clk 0:03:02.9]} 8. O-O {[%clk 0:03:03.2]}
8... O-O {[%clk 0:03:03.6]} 9. Qb3 {[%clk 0:03:03.2]} 9... Qb6 {[%clk
0:02:58.7]} 10. Nbd2 {[%clk 0:03:03.8]} 10... Na6 {[%clk 0:02:51.1]} 11. Nc4
{[%clk 0:03:00.2]} 11... Qxb3 {[%clk 0:02:50.6]} 12. axb3 {[%clk 0:03:01.1]}
12... Nb4 {[%clk 0:02:43.6]} 13. Bd2 {[%clk 0:03:00.1]} 13... Rfc8 {[%clk
0:02:09.4]} 14. Rfc1 {[%clk 0:02:25.3]} 14... Be4 {[%clk 0:01:06.3]} 15. Ne1
{[%clk 0:02:22.6]} 15... c5 {[%clk 0:00:50.7]} 16. dxc5 {[%clk 0:01:51.5]} 16...
Bxc5 {[%clk 0:00:46.5]} 17. Bxb4 {[%clk 0:01:45.1]} 17... Bxb4 {[%clk
0:00:46.7]} 18. Bxe4 {[%clk 0:01:45.8]} 18... Nxe4 {[%clk 0:00:47.3]} 19. Nd3
{[%clk 0:01:46.5]} 19... Bc5 {[%clk 0:00:36.3]} 20. Kg2 {[%clk 0:01:40]} 20...
b5 {[%clk 0:00:29.4]} 21. Nce5 {[%clk 0:01:34.9]} 21... Bb6 {[%clk 0:00:12.8]}
22. e3 {[%clk 0:00:54.1]} 22... Nd2 {[%clk 0:00:12]} 23. b4 {[%clk 0:00:51.7]}
23... f6 {[%clk 0:00:10.7]} 24. Nd7 {[%clk 0:00:37.6]} 24... Nb3 {[%clk
0:00:10.8]} 25. Rxc8+ {[%clk 0:00:36.5]} 25... Rxc8 {[%clk 0:00:11.7]} 26. Ra3
{[%clk 0:00:37]} 26... Nd2 {[%clk 0:00:09.9]} 27. Nxb6 {[%clk 0:00:22.3]} 27...
axb6 {[%clk 0:00:10.8]} 28. Ra7 {[%clk 0:00:22.9]} 28... e5 {[%clk 0:00:07.2]}
29. Rb7 {[%clk 0:00:18.7]} 29... Rd8 {[%clk 0:00:06.6]} 30. Ne1 {[%clk
0:00:17.3]} 30... Rd6 {[%clk 0:00:06.8]} 31. Nf3 {[%clk 0:00:13]} 31... Ne4
{[%clk 0:00:07]} 32. g4 {[%clk 0:00:11]} 32... g5 {[%clk 0:00:05.8]} 33. h4
{[%clk 0:00:10.9]} 33... h6 {[%clk 0:00:05.9]} 34. hxg5 {[%clk 0:00:08.7]} 34...
hxg5 {[%clk 0:00:06]} 35. Kf1 {[%clk 0:00:08.3]} 35... Rc6 {[%clk 0:00:06.1]}
36. Ne1 {[%clk 0:00:07.9]} 36... Nd2+ {[%clk 0:00:05.4]} 37. Ke2 {[%clk
0:00:07.9]} 37... Nc4 {[%clk 0:00:06.3]} 38. b3 {[%clk 0:00:07.1]} 38... Nd6
{[%clk 0:00:02.3]} 39. Rd7 {[%clk 0:00:07.8]} 39... Ne4 {[%clk 0:00:02.6]} 40.
Nd3 {[%clk 0:00:08.2]} 40... Rc2+ {[%clk 0:00:02.7]} 41. Kf3 {[%clk 0:00:08.6]}
41... Nd2+ {[%clk 0:00:02.8]} 42. Kg2 {[%clk 0:00:09.1]} 42... Nxb3 {[%clk
0:00:02.6]} 43. Rd6 {[%clk 0:00:09.1]} 43... Rd2 {[%clk 0:00:02.9]} 44. Rd8+
{[%clk 0:00:06.5]} 44... Kf7 {[%clk 0:00:02.4]} 45. Rd6 {[%clk 0:00:03.5]} 45...
Ke7 {[%clk 0:00:02.7]} 46. Rxb6 {[%clk 0:00:03.9]} 46... Rxd3 {[%clk 0:00:03]}
47. Rxb5 {[%clk 0:00:04.8]} 47... Rd2 {[%clk 0:00:03.3]} 48. Kf3 {[%clk
0:00:04.8]} 48... Rb2 {[%clk 0:00:03.6]} 49. Rb7+ {[%clk 0:00:05.3]} 49... Ke6
{[%clk 0:00:03.5]} 50. Rb6+ {[%clk 0:00:05.8]} 50... Kf7 {[%clk 0:00:03.8]} 51.
Rd6 {[%clk 0:00:03.5]} 51... Nd2+ {[%clk 0:00:02.9]} 52. Kg2 {[%clk 0:00:03]}
52... Ne4 {[%clk 0:00:03.5]} 53. Rd7+ {[%clk 0:00:03.3]} 53... Ke6 {[%clk
0:00:03.8]} 54. Rd8 {[%clk 0:00:03.3]} 54... Rxf2+ {[%clk 0:00:04.3]} 55. Kg1
{[%clk 0:00:04]} 55... Rb2 {[%clk 0:00:05.1]} 56. b5 {[%clk 0:00:04.7]} 56...
Rxb5 {[%clk 0:00:04.9]} 0-1

[Event "Early-Titled-Tuesday-Blitz-May-28-2024"]
[Site "Chess.com"]
[Date "2024.05.28"]
[Round "11"]
[White "noblerone"]
[Black "kachsona"]
[Result "0-1"]
[WhiteElo "2521"]
[BlackElo "2621"]
[TimeControl "180+1"]
[EndTime "10:09:52 PDT"]
[Termination "kachsona won by resignation"]

1. d4 {[%clk 0:02:56.7]} 1... d5 {[%clk 0:02:58.3]} 2. Nf3 {[%clk 0:02:49.3]}
2... Nf6 {[%clk 0:02:58.2]} 3. Bg5 {[%clk 0:02:49.1]} 3... Ne4 {[%clk
0:02:57.2]} 4. Bf4 {[%clk 0:02:44.4]} 4... c5 {[%clk 0:02:57.2]} 5. e3 {[%clk
0:02:43.6]} 5... Qb6 {[%clk 0:02:51.9]} 6. Nc3 {[%clk 0:02:42.5]} 6... Nxc3
{[%clk 0:02:42.4]} 7. bxc3 {[%clk 0:02:43.4]} 7... Nc6 {[%clk 0:02:40.8]} 8. a4
{[%clk 0:02:35.4]} 8... Bf5 {[%clk 0:02:37.5]} 9. Bd3 {[%clk 0:02:31.8]} 9...
Bxd3 {[%clk 0:02:34.5]} 10. Qxd3 {[%clk 0:02:32.7]} 10... e6 {[%clk 0:02:31.7]}
11. O-O {[%clk 0:02:30.8]} 11... c4 {[%clk 0:02:24.8]} 12. Qe2 {[%clk
0:02:28.1]} 12... Qd8 {[%clk 0:02:22.8]} 13. e4 {[%clk 0:02:21.1]} 13... Be7
{[%clk 0:02:22]} 14. Rfb1 {[%clk 0:02:17.6]} 14... Qd7 {[%clk 0:02:20.4]} 15.
exd5 {[%clk 0:02:10.4]} 15... exd5 {[%clk 0:02:19.9]} 16. Ne5 {[%clk 0:01:32.6]}
16... Nxe5 {[%clk 0:02:18.8]} 17. Qxe5 {[%clk 0:01:33.5]} 17... O-O {[%clk
0:02:18.5]} 18. Qc7 {[%clk 0:01:33.4]} 18... Qxc7 {[%clk 0:02:04.6]} 19. Bxc7
{[%clk 0:01:33.4]} 19... b6 {[%clk 0:02:04.7]} 20. a5 {[%clk 0:01:31.3]} 20...
Rfc8 {[%clk 0:01:43.5]} 21. axb6 {[%clk 0:01:11.7]} 21... axb6 {[%clk
0:01:43.6]} 22. Bxb6 {[%clk 0:00:55.3]} 22... f6 {[%clk 0:01:43]} 23. g3 {[%clk
0:00:52.1]} 23... Rxa1 {[%clk 0:01:42.2]} 24. Rxa1 {[%clk 0:00:52.5]} 24... Rb8
{[%clk 0:01:42.1]} 25. Ra7 {[%clk 0:00:43.7]} 25... Rxb6 {[%clk 0:01:30]} 26.
Rxe7 {[%clk 0:00:43.4]} 26... Rb2 {[%clk 0:01:27.8]} 27. Rd7 {[%clk 0:00:43.1]}
27... Rxc2 {[%clk 0:01:26.6]} 28. Rxd5 {[%clk 0:00:43.6]} 28... Rxc3 {[%clk
0:01:27.2]} 29. Rc5 {[%clk 0:00:43.6]} 29... g5 {[%clk 0:01:22.5]} 30. g4 {[%clk
0:00:39.8]} 30... h6 {[%clk 0:01:21.1]} 31. Kg2 {[%clk 0:00:38.3]} 31... Kf7
{[%clk 0:01:20.8]} 32. Rc6 {[%clk 0:00:37.1]} 32... Ke7 {[%clk 0:01:19.8]} 33.
Kf1 {[%clk 0:00:36.1]} 33... Kf7 {[%clk 0:01:17.5]} 34. Kg2 {[%clk 0:00:32.1]}
34... Ke7 {[%clk 0:01:17.3]} 35. Kf1 {[%clk 0:00:32.4]} 35... Rc1+ {[%clk
0:01:17.4]} 36. Ke2 {[%clk 0:00:30.2]} 36... Rh1 {[%clk 0:01:09.7]} 37. Rxc4
{[%clk 0:00:27.4]} 37... Rxh2 {[%clk 0:01:10]} 38. Ke3 {[%clk 0:00:25.7]} 38...
h5 {[%clk 0:01:08.4]} 39. gxh5 {[%clk 0:00:24]} 39... Rxh5 {[%clk 0:01:08.4]}
40. Ra4 {[%clk 0:00:21.7]} 40... Rh4 {[%clk 0:01:06.5]} 41. Ra7+ {[%clk
0:00:20.1]} 41... Ke6 {[%clk 0:01:06.7]} 42. Ra6+ {[%clk 0:00:21]} 42... Kf5
{[%clk 0:01:06.6]} 43. Ra5+ {[%clk 0:00:20.8]} 43... Kg6 {[%clk 0:01:06.7]} 44.
Rb5 {[%clk 0:00:17.4]} 44... Rh1 {[%clk 0:01:06.4]} 45. Ke2 {[%clk 0:00:14.3]}
45... g4 {[%clk 0:01:04.7]} 46. Ke3 {[%clk 0:00:12.5]} 46... Rd1 {[%clk
0:01:03.3]} 47. Ra5 {[%clk 0:00:11.4]} 47... f5 {[%clk 0:01:02.2]} 48. Rb5
{[%clk 0:00:08.6]} 48... Kg5 {[%clk 0:01:01.8]} 49. Ra5 {[%clk 0:00:08.7]} 49...
Re1+ {[%clk 0:01:01.9]} 50. Kd2 {[%clk 0:00:08.1]} 50... Re8 {[%clk 0:01:00.6]}
51. Kd3 {[%clk 0:00:07.9]} 51... Kf4 {[%clk 0:00:59.3]} 52. Rb5 {[%clk
0:00:06.9]} 52... Rf8 {[%clk 0:00:58.5]} 53. Ke2 {[%clk 0:00:06.7]} 53... Ke4
{[%clk 0:00:58.1]} 54. Rb4 {[%clk 0:00:05.5]} 54... Rd8 {[%clk 0:00:57]} 55. d5+
{[%clk 0:00:05.5]} 55... Kxd5 {[%clk 0:00:56.1]} 56. Rb5+ {[%clk 0:00:05.4]}
56... Ke4 {[%clk 0:00:56.1]} 57. Rb4+ {[%clk 0:00:05.8]} 57... Rd4 {[%clk
0:00:56.3]} 58. Rb5 {[%clk 0:00:06.7]} 58... Ra4 {[%clk 0:00:56.2]} 59. Rb2
{[%clk 0:00:06.1]} 59... f4 {[%clk 0:00:55.6]} 60. Rc2 {[%clk 0:00:06]} 60...
f3+ {[%clk 0:00:54.4]} 61. Kd2 {[%clk 0:00:06.4]} 61... Kf4 {[%clk 0:00:54.7]}
62. Rb2 {[%clk 0:00:05.1]} 62... g3 {[%clk 0:00:54.4]} 63. fxg3+ {[%clk
0:00:04]} 63... Kxg3 {[%clk 0:00:54.7]} 64. Rb8 {[%clk 0:00:02.5]} 64... Kf2
{[%clk 0:00:51.4]} 65. Rg8 {[%clk 0:00:01.6]} 65... Rd4+ {[%clk 0:00:51.2]} 66.
Kc2 {[%clk 0:00:01.6]} 66... Kf1 {[%clk 0:00:45.8]} 67. Rg7 {[%clk 0:00:01.5]}
67... f2 {[%clk 0:00:45.4]} 68. Kc1 {[%clk 0:00:01.8]} 68... Ke2 {[%clk
0:00:44.4]} 69. Re7+ {[%clk 0:00:02.1]} 69... Kf3 {[%clk 0:00:44.7]} 70. Rf7+
{[%clk 0:00:02.4]} 70... Rf4 {[%clk 0:00:45.3]} 71. Rxf4+ {[%clk 0:00:01.6]}
71... Kxf4 {[%clk 0:00:45.5]} 0-1

[Event "Early-Titled-Tuesday-Blitz-May-28-2024"]
[Site "Chess.com"]
[Date "2024.05.28"]
[Round "11"]
[White "LeoLV10"]
[Black "wild3000"]
[Result "0-1"]
[WhiteElo "2552"]
[BlackElo "2395"]
[TimeControl "180+1"]
[EndTime "10:09:52 PDT"]
[Termination "wild3000 won by checkmate"]

1. e4 {[%clk 0:03:00.9]} 1... e6 {[%clk 0:02:51.7]} 2. d4 {[%clk 0:03:00.6]}
2... Nf6 {[%clk 0:02:47.2]} 3. e5 {[%clk 0:03:00.6]} 3... Nd5 {[%clk 0:02:46.8]}
4. c4 {[%clk 0:03:00.9]} 4... Nb6 {[%clk 0:02:46.9]} 5. Nc3 {[%clk 0:03:01.6]}
5... d6 {[%clk 0:02:47.2]} 6. exd6 {[%clk 0:03:02]} 6... cxd6 {[%clk 0:02:47.4]}
7. Be3 {[%clk 0:03:02.2]} 7... N8d7 {[%clk 0:02:47.7]} 8. Rc1 {[%clk 0:03:02]}
8... Nf6 {[%clk 0:02:47.7]} 9. Be2 {[%clk 0:03:01.1]} 9... Be7 {[%clk
0:02:47.8]} 10. Nf3 {[%clk 0:03:00.8]} 10... O-O {[%clk 0:02:47.1]} 11. h3
{[%clk 0:03:00.8]} 11... Bd7 {[%clk 0:02:47.5]} 12. O-O {[%clk 0:03:00.3]} 12...
Rc8 {[%clk 0:02:47.6]} 13. b3 {[%clk 0:02:58.8]} 13... Re8 {[%clk 0:02:43.4]}
14. Re1 {[%clk 0:02:58.9]} 14... Bf8 {[%clk 0:02:43.4]} 15. Qd2 {[%clk
0:02:57.3]} 15... Bc6 {[%clk 0:02:41.9]} 16. Nh2 {[%clk 0:02:42.6]} 16... Ne4
{[%clk 0:02:40.7]} 17. Nxe4 {[%clk 0:02:41.9]} 17... Bxe4 {[%clk 0:02:41.6]} 18.
f3 {[%clk 0:02:40.2]} 18... Bg6 {[%clk 0:02:41.3]} 19. Nf1 {[%clk 0:02:39.4]}
19... e5 {[%clk 0:02:27.4]} 20. d5 {[%clk 0:02:39.2]} 20... Nd7 {[%clk
0:02:24.6]} 21. b4 {[%clk 0:02:36.5]} 21... b6 {[%clk 0:02:21.2]} 22. Bf2 {[%clk
0:02:29.8]} 22... a5 {[%clk 0:02:19]} 23. a3 {[%clk 0:02:28.8]} 23... axb4
{[%clk 0:02:18]} 24. axb4 {[%clk 0:02:29.6]} 24... Ra8 {[%clk 0:02:17.9]} 25.
Ra1 {[%clk 0:02:29.6]} 25... Qc7 {[%clk 0:02:17]} 26. Qb2 {[%clk 0:02:28.9]}
26... Qb7 {[%clk 0:02:10.1]} 27. Nd2 {[%clk 0:02:27.7]} 27... f5 {[%clk
0:02:04.1]} 28. Nb3 {[%clk 0:02:26.9]} 28... Be7 {[%clk 0:02:01.2]} 29. Rxa8
{[%clk 0:02:22.6]} 29... Rxa8 {[%clk 0:02:00.8]} 30. Ra1 {[%clk 0:02:23.2]}
30... Rxa1+ {[%clk 0:02:00.5]} 31. Qxa1 {[%clk 0:02:24]} 31... Be8 {[%clk
0:01:42.9]} 32. b5 {[%clk 0:02:10.6]} 32... Nb8 {[%clk 0:01:32.4]} 33. Nd2
{[%clk 0:02:02.7]} 33... h6 {[%clk 0:01:30.9]} 34. Nb1 {[%clk 0:02:02.6]} 34...
Nd7 {[%clk 0:01:29.8]} 35. Nc3 {[%clk 0:01:55.1]} 35... Nc5 {[%clk 0:01:27.5]}
36. Qa3 {[%clk 0:01:54.8]} 36... Kf7 {[%clk 0:01:20.4]} 37. Na2 {[%clk
0:01:42.8]} 37... g5 {[%clk 0:01:15.5]} 38. Nb4 {[%clk 0:01:42.2]} 38... Bd7
{[%clk 0:01:11.3]} 39. Qa1 {[%clk 0:01:40.8]} 39... Bf6 {[%clk 0:01:10.8]} 40.
Qa2 {[%clk 0:01:34.5]} 40... h5 {[%clk 0:01:05.7]} 41. Nc6 {[%clk 0:01:34.8]}
41... g4 {[%clk 0:01:01.2]} 42. hxg4 {[%clk 0:01:23.9]} 42... hxg4 {[%clk
0:01:02.1]} 43. fxg4 {[%clk 0:01:22.5]} 43... fxg4 {[%clk 0:01:00.8]} 44. Qc2
{[%clk 0:01:21.4]} 44... Kg7 {[%clk 0:00:57.6]} 45. Qa2 {[%clk 0:01:14]} 45...
Bf5 {[%clk 0:00:52.1]} 46. Bxc5 {[%clk 0:01:08.1]} 46... dxc5 {[%clk 0:00:52.2]}
47. Qa6 {[%clk 0:00:49.9]} 47... Qc7 {[%clk 0:00:45.4]} 48. Qa8 {[%clk
0:00:38.1]} 48... e4 {[%clk 0:00:40]} 49. Qa7 {[%clk 0:00:36]} 49... Qxa7 {[%clk
0:00:37.3]} 50. Nxa7 {[%clk 0:00:36.9]} 50... Bd4+ {[%clk 0:00:35.5]} 51. Kf1
{[%clk 0:00:36.6]} 51... Kf6 {[%clk 0:00:33.7]} 52. Nc6 {[%clk 0:00:35.7]} 52...
g3 {[%clk 0:00:31]} 53. Bh5 {[%clk 0:00:33.4]} 53... Kg5 {[%clk 0:00:27.2]} 54.
Be8 {[%clk 0:00:31.6]} 54... Bg4 {[%clk 0:00:23]} 55. d6 {[%clk 0:00:27.5]}
55... e3 {[%clk 0:00:19.3]} 56. Nxd4 {[%clk 0:00:26.1]} 56... cxd4 {[%clk
0:00:20.2]} 57. d7 {[%clk 0:00:26.5]} 57... Bxd7 {[%clk 0:00:18.9]} 58. Bxd7
{[%clk 0:00:27.1]} 58... d3 {[%clk 0:00:16.2]} 59. Be6 {[%clk 0:00:20.3]} 59...
Kf4 {[%clk 0:00:16.2]} 60. c5 {[%clk 0:00:20.2]} 60... e2+ {[%clk 0:00:15.9]}
61. Ke1 {[%clk 0:00:14.2]} 61... Ke3 {[%clk 0:00:16.1]} 62. cxb6 {[%clk
0:00:09.8]} 62... d2# {[%clk 0:00:16.3]} 0-1

[Event "Early-Titled-Tuesday-Blitz-May-28-2024"]
[Site "Chess.com"]
[Date "2024.05.28"]
[Round "11"]
[White "Rsnr"]
[Black "KononenkoD"]
[Result "1-0"]
[WhiteElo "2884"]
[BlackElo "2608"]
[TimeControl "180+1"]
[EndTime "10:09:53 PDT"]
[Termination "Rsnr won on time"]

1. d4 {[%clk 0:02:51.4]} 1... Nf6 {[%clk 0:02:58]} 2. c4 {[%clk 0:02:51.6]} 2...
c5 {[%clk 0:02:58.3]} 3. d5 {[%clk 0:02:49.8]} 3... b5 {[%clk 0:02:58.5]} 4. Qc2
{[%clk 0:02:50.3]} 4... g6 {[%clk 0:02:57.8]} 5. e4 {[%clk 0:02:50.1]} 5... d6
{[%clk 0:02:58.1]} 6. Nf3 {[%clk 0:02:48]} 6... Bg7 {[%clk 0:02:58.5]} 7. cxb5
{[%clk 0:02:48.1]} 7... a6 {[%clk 0:02:58.1]} 8. Nc3 {[%clk 0:02:48.3]} 8... O-O
{[%clk 0:02:58]} 9. a4 {[%clk 0:02:46.6]} 9... e6 {[%clk 0:02:57.9]} 10. dxe6
{[%clk 0:02:43.2]} 10... fxe6 {[%clk 0:02:58.8]} 11. Be2 {[%clk 0:02:36.7]}
11... d5 {[%clk 0:02:55.2]} 12. O-O {[%clk 0:02:25.6]} 12... d4 {[%clk
0:02:48.6]} 13. Nd1 {[%clk 0:02:25.2]} 13... Nbd7 {[%clk 0:02:48.6]} 14. Nd2
{[%clk 0:02:04.8]} 14... axb5 {[%clk 0:02:35.2]} 15. Bxb5 {[%clk 0:02:04.6]}
15... Bb7 {[%clk 0:02:35.4]} 16. f3 {[%clk 0:01:57.6]} 16... Kh8 {[%clk
0:02:21.5]} 17. Nc4 {[%clk 0:01:52.5]} 17... Qc7 {[%clk 0:02:09.7]} 18. Nf2
{[%clk 0:01:49.3]} 18... Nh5 {[%clk 0:02:01.3]} 19. Nd3 {[%clk 0:01:48.4]} 19...
Bxe4 {[%clk 0:01:54.2]} 20. fxe4 {[%clk 0:01:43.4]} 20... Rxf1+ {[%clk
0:01:53.6]} 21. Kxf1 {[%clk 0:01:44.3]} 21... Qxh2 {[%clk 0:01:53.6]} 22. Ne1
{[%clk 0:00:57.7]} 22... Rf8+ {[%clk 0:01:16.7]} 23. Ke2 {[%clk 0:00:57.7]}
23... Ng3+ {[%clk 0:01:12]} 24. Kd3 {[%clk 0:00:45.6]} 24... Qg1 {[%clk
0:01:04.7]} 25. Qd1 {[%clk 0:00:35.1]} 25... Rf2 {[%clk 0:00:57.6]} 26. Bd2
{[%clk 0:00:30.3]} 26... Nf6 {[%clk 0:00:40.3]} 27. Bc6 {[%clk 0:00:28.6]} 27...
Qf1+ {[%clk 0:00:37.5]} 28. Kc2 {[%clk 0:00:29.1]} 28... Nfxe4 {[%clk
0:00:37.7]} 29. Bb5 {[%clk 0:00:23.3]} 29... d3+ {[%clk 0:00:27.1]} 30. Nxd3
{[%clk 0:00:22.7]} 30... Qxg2 {[%clk 0:00:24.8]} 31. Nxf2 {[%clk 0:00:22.2]}
31... Nxf2 {[%clk 0:00:23.7]} 32. Qe1 {[%clk 0:00:22.1]} 32... Nge4 {[%clk
0:00:20.5]} 33. Ra3 {[%clk 0:00:19.5]} 33... Qg4 {[%clk 0:00:18.2]} 34. Kb1
{[%clk 0:00:18.9]} 34... Qf5 {[%clk 0:00:18.2]} 35. Ka1 {[%clk 0:00:19.2]} 35...
Qf6 {[%clk 0:00:17.3]} 36. Bc1 {[%clk 0:00:17.2]} 36... h5 {[%clk 0:00:15.9]}
37. a5 {[%clk 0:00:17.5]} 37... Ng5 {[%clk 0:00:07.9]} 38. a6 {[%clk 0:00:17.3]}
38... Qd4 {[%clk 0:00:07.4]} 39. a7 {[%clk 0:00:16.5]} 39... Nd3 {[%clk
0:00:08.3]} 40. a8=Q+ {[%clk 0:00:15.7]} 40... Kh7 {[%clk 0:00:08.5]} 41. Rxd3
{[%clk 0:00:12.8]} 41... Qxd3 {[%clk 0:00:08.5]} 42. Bxg5 {[%clk 0:00:12.8]}
42... Qb3 {[%clk 0:00:08.2]} 43. Qa4 {[%clk 0:00:08.2]} 43... Qf3 {[%clk
0:00:05.9]} 44. Qb1 {[%clk 0:00:08.3]} 44... Qg4 {[%clk 0:00:05.5]} 45. Qac2
{[%clk 0:00:08.3]} 45... Qxg5 {[%clk 0:00:05]} 46. Qe4 {[%clk 0:00:07.3]} 46...
h4 {[%clk 0:00:04.7]} 47. Be8 {[%clk 0:00:06.7]} 47... Kh8 {[%clk 0:00:03.5]}
48. Qxg6 {[%clk 0:00:06.7]} 48... Qxg6 {[%clk 0:00:03.6]} 49. Qxg6 {[%clk
0:00:06.9]} 49... Bxb2+ {[%clk 0:00:04.5]} 50. Ka2 {[%clk 0:00:06.9]} 50... e5
{[%clk 0:00:03.1]} 51. Nd6 {[%clk 0:00:07.4]} 1-0

[Event "Early-Titled-Tuesday-Blitz-May-28-2024"]
[Site "Chess.com"]
[Date "2024.05.28"]
[Round "11"]
[White "patzer-reloaded"]
[Black "SharapovEvgeny"]
[Result "0-1"]
[WhiteElo "2478"]
[BlackElo "2609"]
[TimeControl "180+1"]
[EndTime "10:09:53 PDT"]
[Termination "SharapovEvgeny won on time"]

1. d3 {[%clk 0:02:58]} 1... d5 {[%clk 0:02:59.4]} 2. Nf3 {[%clk 0:02:57.9]} 2...
c5 {[%clk 0:02:59.3]} 3. g3 {[%clk 0:02:58.1]} 3... Nc6 {[%clk 0:02:58.8]} 4.
Bg2 {[%clk 0:02:58.7]} 4... g6 {[%clk 0:02:58.8]} 5. O-O {[%clk 0:02:59.2]} 5...
Bg7 {[%clk 0:02:58.9]} 6. c4 {[%clk 0:02:59.9]} 6... e6 {[%clk 0:02:59.1]} 7.
Nc3 {[%clk 0:02:58.5]} 7... d4 {[%clk 0:02:59]} 8. Na4 {[%clk 0:02:57.7]} 8...
Qe7 {[%clk 0:02:54.4]} 9. a3 {[%clk 0:02:49.3]} 9... Nh6 {[%clk 0:02:52.9]} 10.
b4 {[%clk 0:02:43.9]} 10... cxb4 {[%clk 0:02:52.4]} 11. axb4 {[%clk 0:02:44.6]}
11... Nxb4 {[%clk 0:02:47.1]} 12. Ba3 {[%clk 0:02:43.5]} 12... a5 {[%clk
0:02:46.9]} 13. Nb6 {[%clk 0:02:34.4]} 13... Rb8 {[%clk 0:02:44.5]} 14. Qb3
{[%clk 0:02:30.2]} 14... O-O {[%clk 0:02:40.4]} 15. Rfb1 {[%clk 0:02:29]} 15...
Nf5 {[%clk 0:02:19.9]} 16. Ne1 {[%clk 0:02:05]} 16... Qc7 {[%clk 0:02:08.3]} 17.
Bxb4 {[%clk 0:02:02.7]} 17... axb4 {[%clk 0:02:08]} 18. Qxb4 {[%clk 0:02:01.2]}
18... Rd8 {[%clk 0:01:55]} 19. Nc2 {[%clk 0:01:57]} 19... Bf8 {[%clk 0:01:52.6]}
20. Qb2 {[%clk 0:01:47.5]} 20... Bc5 {[%clk 0:01:50]} 21. Nxc8 {[%clk
0:01:29.7]} 21... Rdxc8 {[%clk 0:01:48.3]} 22. Na3 {[%clk 0:01:14.2]} 22... Bxa3
{[%clk 0:01:43.8]} 23. Rxa3 {[%clk 0:01:07.2]} 23... b6 {[%clk 0:01:34]} 24. Rb3
{[%clk 0:01:03]} 24... Qe5 {[%clk 0:01:32.8]} 25. Bf3 {[%clk 0:01:00]} 25... h5
{[%clk 0:01:22.1]} 26. Rb5 {[%clk 0:00:53.4]} 26... Rc5 {[%clk 0:01:19.5]} 27.
Rxb6 {[%clk 0:00:50.9]} 27... Rxb6 {[%clk 0:01:18.1]} 28. Qxb6 {[%clk
0:00:51.8]} 28... h4 {[%clk 0:01:11.9]} 29. Qb8+ {[%clk 0:00:48.7]} 29... Qxb8
{[%clk 0:01:10.6]} 30. Rxb8+ {[%clk 0:00:49]} 30... Kg7 {[%clk 0:01:01.1]} 31.
Kg2 {[%clk 0:00:37.2]} 31... hxg3 {[%clk 0:00:57.2]} 32. hxg3 {[%clk 0:00:36.8]}
32... Kf6 {[%clk 0:00:50.6]} 33. Rb5 {[%clk 0:00:32.3]} 33... Rc7 {[%clk
0:00:42.7]} 34. c5 {[%clk 0:00:31.4]} 34... Ne7 {[%clk 0:00:41.9]} 35. c6 {[%clk
0:00:28.4]} 35... e5 {[%clk 0:00:37.6]} 36. Rb7 {[%clk 0:00:26.7]} 36... Rc8
{[%clk 0:00:33]} 37. c7 {[%clk 0:00:23]} 37... Ke6 {[%clk 0:00:32.8]} 38. Bg4+
{[%clk 0:00:10.5]} 38... f5 {[%clk 0:00:32.3]} 39. Bf3 {[%clk 0:00:10.5]} 39...
Kd7 {[%clk 0:00:27.2]} 40. Rb6 {[%clk 0:00:10.2]} 40... Rxc7 {[%clk 0:00:25.1]}
41. Rf6 {[%clk 0:00:09.4]} 41... Rc5 {[%clk 0:00:19.6]} 42. g4 {[%clk
0:00:09.2]} 42... Ra5 {[%clk 0:00:15.8]} 43. Kg3 {[%clk 0:00:07.8]} 43... Rc5
{[%clk 0:00:13.4]} 44. Kh4 {[%clk 0:00:07.6]} 44... Ra5 {[%clk 0:00:12.6]} 45.
Kg5 {[%clk 0:00:05.3]} 45... e4 {[%clk 0:00:12.6]} 46. Bg2 {[%clk 0:00:04.5]}
46... fxg4+ {[%clk 0:00:09.6]} 47. Kxg4 {[%clk 0:00:04.6]} 47... exd3 {[%clk
0:00:08.3]} 48. exd3 {[%clk 0:00:05.1]} 48... Rf5 {[%clk 0:00:06.9]} 49. Rxf5
{[%clk 0:00:02.4]} 49... gxf5+ {[%clk 0:00:06.8]} 50. Kf4 {[%clk 0:00:02.6]}
50... Ke6 {[%clk 0:00:06.2]} 51. Bh3 {[%clk 0:00:01.8]} 51... Kf6 {[%clk
0:00:05.4]} 52. Bg2 {[%clk 0:00:01.3]} 52... Ng6+ {[%clk 0:00:05.4]} 53. Kg3
{[%clk 0:00:01.6]} 53... Kg5 {[%clk 0:00:05.3]} 0-1